[Event "Titled Tuesday Blitz February 01 B 2022"]
[White "Andreikin, Dmitry"]
[Black "Bortnyk, Olexandr"]
[WhiteFideId "4158814"]
[BlackFideId "14120828"]
[WhiteElo "2736"]
[BlackElo "2723"]
[Result "1-0"]
[Round "10"]
[TimeControl "180+1"]
[Date "2022.02.01"]
[WhiteClock "0:01:09"]
[BlackClock "0:00:02"]

1. d4 {[%clk 0:03:00]}  d6 {[%clk 0:02:55]} 2. e4 {[%clk 0:03:00]}  Nf6 {[%clk 0:02:54]} 3. f3 {[%clk 0:02:59]}  e5 {[%clk 0:02:52]} 4. d5 {[%clk 0:02:56]}  a5 {[%clk 0:02:49]} 5. Be3 {[%clk 0:02:49]}  Be7 {[%clk 0:02:49]} 6. Nc3 {[%clk 0:02:46]}  Nfd7 {[%clk 0:02:40]} 7. Qd2 {[%clk 0:02:45]}  h6 {[%clk 0:02:40]} 8. O-O-O {[%clk 0:02:41]}  Bg5 {[%clk 0:02:40]} 9. Kb1 {[%clk 0:02:39]}  Bxe3 {[%clk 0:02:37]} 10. Qxe3 {[%clk 0:02:40]}  Qg5 {[%clk 0:02:27]} 11. Qf2 {[%clk 0:02:38]}  Nc5 {[%clk 0:02:25]} 12. h4 {[%clk 0:02:36]}  Qf6 {[%clk 0:02:25]} 13. Nge2 {[%clk 0:02:34]}  Bd7 {[%clk 0:02:18]} 14. Nc1 {[%clk 0:02:26]}  Nba6 {[%clk 0:02:17]} 15. Qe3 {[%clk 0:02:25]}  O-O-O {[%clk 0:02:08]} 16. Bxa6 {[%clk 0:02:20]}  bxa6 {[%clk 0:01:09]} 17. Nd3 {[%clk 0:02:20]}  Nxd3 {[%clk 0:01:00]} 18. Qa7 {[%clk 0:02:19]}  Bb5 {[%clk 0:00:53]} 19. cxd3 {[%clk 0:02:17]}  Kd7 {[%clk 0:00:50]} 20. a4 {[%clk 0:02:15]}  Ra8 {[%clk 0:00:46]} 21. Qe3 {[%clk 0:02:15]}  Rhb8 {[%clk 0:00:44]} 22. axb5 {[%clk 0:02:07]}  axb5 {[%clk 0:00:45]} 23. Rc1 {[%clk 0:02:06]}  a4 {[%clk 0:00:45]} 24. Ne2 {[%clk 0:01:59]}  b4 {[%clk 0:00:29]} 25. Rc6 {[%clk 0:01:59]}  Rb7 {[%clk 0:00:29]} 26. Rhc1 {[%clk 0:01:58]}  a3 {[%clk 0:00:23]} 27. b3 {[%clk 0:01:56]}  a2+ {[%clk 0:00:24]} 28. Ka1 {[%clk 0:01:49]}  Ra3 {[%clk 0:00:23]} 29. Qd2 {[%clk 0:01:48]}  Qxh4 {[%clk 0:00:17]} 30. Qc2 {[%clk 0:01:43]}  Qd8 {[%clk 0:00:17]} 31. Rxd6+ {[%clk 0:01:38]}  cxd6 {[%clk 0:00:06]} 32. Qc6+ {[%clk 0:01:38]}  Ke7 {[%clk 0:00:07]} 33. Qxb7+ {[%clk 0:01:38]}  Kf6 {[%clk 0:00:08]} 34. Qxb4 {[%clk 0:01:35]}  Ra6 {[%clk 0:00:04]} 35. Rc6 {[%clk 0:01:33]}  Rxc6 {[%clk 0:00:03]} 36. dxc6 {[%clk 0:01:34]}  Qc7 {[%clk 0:00:03]} 37. Qc4 {[%clk 0:01:23]}  Kg5 {[%clk 0:00:02]} 38. Nc3 {[%clk 0:01:21]}  Kh4 {[%clk 0:00:01]} 39. Nd5 {[%clk 0:01:19]}  Qa5 {[%clk 0:00:02]} 40. Qc3 {[%clk 0:01:17]}  Qa7 {[%clk 0:00:01]} 41. c7 {[%clk 0:01:10]}  Qg1+ {[%clk 0:00:01]} 42. Kxa2 {[%clk 0:01:10]}  Qa7+ {[%clk 0:00:01]} 43. Kb2 {[%clk 0:01:10]}  Qf2+ {[%clk 0:00:02]} 44. Qc2 {[%clk 0:01:09]}  Qd4+ {[%clk 0:00:02]} 45. Kb1 {[%clk 0:01:09]}  Qg1+ {[%clk 0:00:02]} 46. Qc1 {[%clk 0:01:09]} 1-0


[Site "https://www.chess.com"]

[Event "Titled Tuesday Blitz February 01 B 2022"]
[White "Barp, Alberto"]
[Black "Kosakowski, Jakub"]
[WhiteFideId "872555"]
[BlackFideId "1185080"]
[WhiteElo "2229"]
[BlackElo "2476"]
[Result "0-1"]
[Round "10"]
[TimeControl "180+1"]
[Date "2022.02.01"]
[WhiteClock "0:00:24"]
[BlackClock "0:00:53"]

1. d4 {[%clk 0:03:00]}  h6 {[%clk 0:02:57]} 2. e4 {[%clk 0:02:58]}  b6 {[%clk 0:02:57]} 3. c4 {[%clk 0:02:57]}  Bb7 {[%clk 0:02:58]} 4. Bd3 {[%clk 0:02:55]}  g6 {[%clk 0:02:58]} 5. Be3 {[%clk 0:02:52]}  Bg7 {[%clk 0:02:58]} 6. Nc3 {[%clk 0:02:52]}  e6 {[%clk 0:02:58]} 7. Nf3 {[%clk 0:02:52]}  d6 {[%clk 0:02:58]} 8. O-O {[%clk 0:02:44]}  Ne7 {[%clk 0:02:58]} 9. Qd2 {[%clk 0:02:43]}  Nd7 {[%clk 0:02:58]} 10. b4 {[%clk 0:02:38]}  a6 {[%clk 0:02:53]} 11. a4 {[%clk 0:02:38]}  Kf8 {[%clk 0:02:40]} 12. Rfd1 {[%clk 0:02:33]}  Kg8 {[%clk 0:02:40]} 13. a5 {[%clk 0:02:32]}  Kh7 {[%clk 0:02:33]} 14. Qe2 {[%clk 0:02:29]}  bxa5 {[%clk 0:02:25]} 15. Rxa5 {[%clk 0:02:00]}  c5 {[%clk 0:02:24]} 16. Ra4 {[%clk 0:01:58]}  Nc6 {[%clk 0:02:18]} 17. dxc5 {[%clk 0:01:49]}  Bxc3 {[%clk 0:02:14]} 18. cxd6 {[%clk 0:01:39]}  Nxb4 {[%clk 0:02:10]} 19. Rc1 {[%clk 0:01:30]}  Nxd3 {[%clk 0:02:08]} 20. Qxd3 {[%clk 0:01:27]}  Bg7 {[%clk 0:02:06]} 21. c5 {[%clk 0:01:25]}  Bc6 {[%clk 0:02:02]} 22. Rxa6 {[%clk 0:01:25]}  Bxe4 {[%clk 0:02:02]} 23. Qa3 {[%clk 0:01:20]}  Rxa6 {[%clk 0:01:43]} 24. Qxa6 {[%clk 0:01:21]}  Nb8 {[%clk 0:01:43]} 25. Qc4 {[%clk 0:01:18]}  Bxf3 {[%clk 0:01:43]} 26. gxf3 {[%clk 0:01:17]}  Nc6 {[%clk 0:01:43]} 27. Rb1 {[%clk 0:01:16]}  Qd7 {[%clk 0:01:41]} 28. Rb6 {[%clk 0:01:15]}  Rc8 {[%clk 0:01:41]} 29. Qb5 {[%clk 0:01:15]}  Ne5 {[%clk 0:01:20]} 30. Qxd7 {[%clk 0:01:15]}  Nxd7 {[%clk 0:01:20]} 31. Rb7 {[%clk 0:01:02]}  Ne5 {[%clk 0:01:15]} 32. d7 {[%clk 0:00:58]}  Rd8 {[%clk 0:01:13]} 33. c6 {[%clk 0:00:51]}  Nxc6 {[%clk 0:01:13]} 34. Bb6 {[%clk 0:00:51]}  Bf6 {[%clk 0:01:12]} 35. Bxd8 {[%clk 0:00:42]}  Nxd8 {[%clk 0:01:12]} 36. Rc7 {[%clk 0:00:40]}  Kg7 {[%clk 0:01:12]} 37. Rc4 {[%clk 0:00:39]}  Kf8 {[%clk 0:01:12]} 38. Rc7 {[%clk 0:00:31]}  Be5 {[%clk 0:01:10]} 39. Ra7 {[%clk 0:00:31]}  Ke7 {[%clk 0:01:10]} 40. Kg2 {[%clk 0:00:31]}  Bd4 {[%clk 0:01:10]} 41. Ra4 {[%clk 0:00:30]}  Bc5 {[%clk 0:01:09]} 42. Rc4 {[%clk 0:00:29]}  Bd6 {[%clk 0:01:09]} 43. Ra4 {[%clk 0:00:28]}  Kxd7 {[%clk 0:01:06]} 44. h4 {[%clk 0:00:27]}  h5 {[%clk 0:01:04]} 45. f4 {[%clk 0:00:27]}  Ke7 {[%clk 0:01:02]} 46. Kf3 {[%clk 0:00:27]}  Kf6 {[%clk 0:01:01]} 47. Ra6 {[%clk 0:00:26]}  Be7 {[%clk 0:01:00]} 48. Rb6 {[%clk 0:00:25]}  Kg7 {[%clk 0:00:54]} 49. Ke4 {[%clk 0:00:24]}  Bxh4 {[%clk 0:00:54]} 50. Kf3 {[%clk 0:00:24]}  Be7 {[%clk 0:00:53]} 0-1


[Site "https://www.chess.com"]

[Event "Titled Tuesday Blitz February 01 B 2022"]
[White "Bok, Benjamin"]
[Black "Ramirez, Alejandro"]
[WhiteFideId "1017063"]
[BlackFideId "6500617"]
[WhiteElo "2658"]
[BlackElo "2694"]
[Result "1-0"]
[Round "10"]
[TimeControl "180+1"]
[Date "2022.02.01"]
[WhiteClock "0:00:06"]
[BlackClock "0:00:08"]

1. d4 {[%clk 0:03:00]}  Nf6 {[%clk 0:02:52]} 2. c4 {[%clk 0:03:00]}  c5 {[%clk 0:02:53]} 3. Nf3 {[%clk 0:02:57]}  cxd4 {[%clk 0:02:52]} 4. Nxd4 {[%clk 0:02:58]}  b6 {[%clk 0:02:53]} 5. Nc3 {[%clk 0:02:52]}  Bb7 {[%clk 0:02:53]} 6. f3 {[%clk 0:02:52]}  e6 {[%clk 0:02:50]} 7. e4 {[%clk 0:02:52]}  d6 {[%clk 0:02:51]} 8. Be2 {[%clk 0:02:51]}  Be7 {[%clk 0:02:52]} 9. O-O {[%clk 0:02:51]}  O-O {[%clk 0:02:52]} 10. Be3 {[%clk 0:02:51]}  a6 {[%clk 0:02:52]} 11. Qd2 {[%clk 0:02:52]}  Nbd7 {[%clk 0:02:53]} 12. Rfc1 {[%clk 0:02:47]}  Qb8 {[%clk 0:02:53]} 13. a4 {[%clk 0:02:46]}  Bd8 {[%clk 0:02:53]} 14. Kh1 {[%clk 0:02:42]}  Bc7 {[%clk 0:02:54]} 15. Bg1 {[%clk 0:02:41]}  Rd8 {[%clk 0:02:50]} 16. b4 {[%clk 0:02:39]}  a5 {[%clk 0:02:40]} 17. Ncb5 {[%clk 0:02:28]}  axb4 {[%clk 0:02:36]} 18. Qxb4 {[%clk 0:02:29]}  Nc5 {[%clk 0:02:29]} 19. Rcb1 {[%clk 0:02:21]}  Ra6 {[%clk 0:02:02]} 20. Nxc7 {[%clk 0:02:05]}  Qxc7 {[%clk 0:02:02]} 21. Nb5 {[%clk 0:02:05]}  Qe7 {[%clk 0:01:58]} 22. Nxd6 {[%clk 0:01:53]}  Bc6 {[%clk 0:01:46]} 23. e5 {[%clk 0:01:35]}  Nfd7 {[%clk 0:01:44]} 24. a5 {[%clk 0:01:09]}  Rda8 {[%clk 0:01:44]} 25. Qc3 {[%clk 0:00:57]}  Rxa5 {[%clk 0:01:36]} 26. Rxa5 {[%clk 0:00:54]}  Rxa5 {[%clk 0:01:37]} 27. Rxb6 {[%clk 0:00:43]}  Ra6 {[%clk 0:00:32]} 28. Rxa6 {[%clk 0:00:42]}  Nxa6 {[%clk 0:00:32]} 29. Qa5 {[%clk 0:00:42]}  Nab8 {[%clk 0:00:27]} 30. Qc7 {[%clk 0:00:41]}  h6 {[%clk 0:00:20]} 31. Bd3 {[%clk 0:00:40]}  g6 {[%clk 0:00:20]} 32. h3 {[%clk 0:00:20]}  Kg7 {[%clk 0:00:20]} 33. Bf1 {[%clk 0:00:12]}  Qg5 {[%clk 0:00:18]} 34. Ne8+ {[%clk 0:00:11]}  Kf8 {[%clk 0:00:18]} 35. Nf6 {[%clk 0:00:11]}  Qc1 {[%clk 0:00:08]} 36. Qd8+ {[%clk 0:00:06]} 1-0


[Site "https://www.chess.com"]

[Event "Titled Tuesday Blitz February 01 B 2022"]
[White "Boros, Denes"]
[Black "Kamsky, Gata"]
[WhiteFideId "722340"]
[BlackFideId "2000024"]
[WhiteElo "2464"]
[BlackElo "2645"]
[Result "0-1"]
[Round "10"]
[TimeControl "180+1"]
[Date "2022.02.01"]
[WhiteClock "0:00:06"]
[BlackClock "0:00:05"]

1. c4 {[%clk 0:03:00]}  c6 {[%clk 0:02:53]} 2. Nf3 {[%clk 0:02:56]}  d5 {[%clk 0:02:49]} 3. e3 {[%clk 0:02:55]}  Nf6 {[%clk 0:02:49]} 4. Qc2 {[%clk 0:02:51]}  g6 {[%clk 0:02:39]} 5. b3 {[%clk 0:02:50]}  Bg7 {[%clk 0:02:39]} 6. Bb2 {[%clk 0:02:50]}  O-O {[%clk 0:02:39]} 7. Be2 {[%clk 0:02:51]}  Bg4 {[%clk 0:02:36]} 8. O-O {[%clk 0:02:48]}  e6 {[%clk 0:02:35]} 9. h3 {[%clk 0:02:48]}  Bxf3 {[%clk 0:02:35]} 10. Bxf3 {[%clk 0:02:49]}  a5 {[%clk 0:02:34]} 11. Rc1 {[%clk 0:02:46]}  Na6 {[%clk 0:02:34]} 12. a3 {[%clk 0:02:45]}  Qe7 {[%clk 0:02:27]} 13. Nc3 {[%clk 0:02:44]}  Nd7 {[%clk 0:02:20]} 14. Nd1 {[%clk 0:02:26]}  Bxb2 {[%clk 0:02:17]} 15. Nxb2 {[%clk 0:02:26]}  Rfd8 {[%clk 0:02:08]} 16. d4 {[%clk 0:02:22]}  Nc7 {[%clk 0:02:03]} 17. Nd3 {[%clk 0:02:14]}  Ne8 {[%clk 0:02:02]} 18. Qb2 {[%clk 0:01:55]}  Nd6 {[%clk 0:02:01]} 19. c5 {[%clk 0:01:55]}  Nf5 {[%clk 0:01:46]} 20. a4 {[%clk 0:01:42]}  Re8 {[%clk 0:01:45]} 21. b4 {[%clk 0:01:37]}  e5 {[%clk 0:01:38]} 22. Bg4 {[%clk 0:01:30]}  exd4 {[%clk 0:01:22]} 23. Bxf5 {[%clk 0:01:30]}  gxf5 {[%clk 0:01:22]} 24. Qxd4 {[%clk 0:01:19]}  axb4 {[%clk 0:01:17]} 25. Rcb1 {[%clk 0:01:13]}  Nf8 {[%clk 0:01:15]} 26. Rxb4 {[%clk 0:01:12]}  Ra7 {[%clk 0:01:07]} 27. Rab1 {[%clk 0:01:07]}  Ng6 {[%clk 0:00:54]} 28. h4 {[%clk 0:01:04]}  h5 {[%clk 0:00:49]} 29. a5 {[%clk 0:00:54]}  Rd8 {[%clk 0:00:35]} 30. g3 {[%clk 0:00:46]}  Rd7 {[%clk 0:00:33]} 31. Ra1 {[%clk 0:00:37]}  Rd8 {[%clk 0:00:25]} 32. Qb2 {[%clk 0:00:28]}  Kh7 {[%clk 0:00:19]} 33. Kf1 {[%clk 0:00:22]}  Rda8 {[%clk 0:00:15]} 34. Raa4 {[%clk 0:00:13]}  Rxa5 {[%clk 0:00:13]} 35. Rxb7 {[%clk 0:00:13]}  Qe6 {[%clk 0:00:11]} 36. Rxa5 {[%clk 0:00:09]}  Rxa5 {[%clk 0:00:11]} 37. Rb8 {[%clk 0:00:09]}  Qe4 {[%clk 0:00:09]} 38. Nf4 {[%clk 0:00:05]}  Ra1+ {[%clk 0:00:07]} 39. Ke2 {[%clk 0:00:04]}  Qc4+ {[%clk 0:00:05]} 40. Kf3 {[%clk 0:00:03]}  Qe4+ {[%clk 0:00:05]} 41. Ke2 {[%clk 0:00:04]}  Qc4+ {[%clk 0:00:05]} 42. Nd3 {[%clk 0:00:04]}  Ra2 {[%clk 0:00:05]} 43. Rb4 {[%clk 0:00:01]}  Rxb2+ {[%clk 0:00:04]} 44. Rxb2 {[%clk 0:00:01]}  Ne5 {[%clk 0:00:03]} 45. Rd2 {[%clk 0:00:02]}  f6 {[%clk 0:00:03]} 46. f4 {[%clk 0:00:02]}  Nxd3 {[%clk 0:00:03]} 47. Rxd3 {[%clk 0:00:03]}  Qxc5 {[%clk 0:00:03]} 48. Kd2 {[%clk 0:00:04]}  Qb4+ {[%clk 0:00:03]} 49. Ke2 {[%clk 0:00:04]}  Qc4 {[%clk 0:00:04]} 50. Kd2 {[%clk 0:00:04]}  c5 {[%clk 0:00:04]} 51. Rc3 {[%clk 0:00:04]}  Qxc3+ {[%clk 0:00:04]} 52. Kxc3 {[%clk 0:00:05]}  Kg6 {[%clk 0:00:05]} 53. Kd3 {[%clk 0:00:05]}  Kf7 {[%clk 0:00:05]} 54. e4 {[%clk 0:00:06]}  fxe4+ {[%clk 0:00:05]} 0-1


[Site "https://www.chess.com"]

[Event "Titled Tuesday Blitz February 01 B 2022"]
[White "Dobrov, Vladimir"]
[Black "Gaehwiler, Gabriel"]
[WhiteFideId "4136594"]
[BlackFideId "1314530"]
[WhiteElo "2614"]
[BlackElo "2383"]
[Result "1-0"]
[Round "10"]
[TimeControl "180+1"]
[Date "2022.02.01"]
[WhiteClock "0:00:04"]
[BlackClock "0:00:04"]

1. d4 {[%clk 0:03:00]}  Nf6 {[%clk 0:03:00]} 2. c4 {[%clk 0:02:59]}  g6 {[%clk 0:03:00]} 3. Nc3 {[%clk 0:02:59]}  Bg7 {[%clk 0:03:00]} 4. e4 {[%clk 0:02:59]}  O-O {[%clk 0:03:01]} 5. Be2 {[%clk 0:02:59]}  d6 {[%clk 0:03:02]} 6. Nf3 {[%clk 0:02:59]}  e5 {[%clk 0:03:01]} 7. O-O {[%clk 0:03:00]}  Bg4 {[%clk 0:02:59]} 8. d5 {[%clk 0:02:44]}  a5 {[%clk 0:02:59]} 9. Be3 {[%clk 0:02:43]}  Na6 {[%clk 0:02:59]} 10. Nd2 {[%clk 0:02:43]}  Bd7 {[%clk 0:02:58]} 11. a3 {[%clk 0:02:42]}  h5 {[%clk 0:02:56]} 12. Rb1 {[%clk 0:02:36]}  Ng4 {[%clk 0:02:55]} 13. Bxg4 {[%clk 0:02:34]}  hxg4 {[%clk 0:02:54]} 14. f3 {[%clk 0:02:24]}  Qh4 {[%clk 0:02:34]} 15. fxg4 {[%clk 0:01:44]}  Bxg4 {[%clk 0:02:31]} 16. Qe1 {[%clk 0:01:44]}  Qh5 {[%clk 0:02:22]} 17. Qg3 {[%clk 0:01:37]}  Bd7 {[%clk 0:02:11]} 18. b4 {[%clk 0:01:32]}  f5 {[%clk 0:02:10]} 19. Qg5 {[%clk 0:01:22]}  Qh7 {[%clk 0:01:37]} 20. g3 {[%clk 0:01:17]}  f4 {[%clk 0:01:34]} 21. gxf4 {[%clk 0:00:57]}  exf4 {[%clk 0:01:33]} 22. Rxf4 {[%clk 0:00:56]}  Rxf4 {[%clk 0:01:28]} 23. Bxf4 {[%clk 0:00:56]}  Bxc3 {[%clk 0:01:28]} 24. c5 {[%clk 0:00:48]}  Rf8 {[%clk 0:01:23]} 25. cxd6 {[%clk 0:00:46]}  Qh5 {[%clk 0:00:43]} 26. dxc7 {[%clk 0:00:32]}  Qxg5+ {[%clk 0:00:36]} 27. Bxg5 {[%clk 0:00:33]}  Nxc7 {[%clk 0:00:34]} 28. bxa5 {[%clk 0:00:30]}  Bc8 {[%clk 0:00:24]} 29. Nc4 {[%clk 0:00:26]}  Na6 {[%clk 0:00:18]} 30. Rc1 {[%clk 0:00:18]}  Bd4+ {[%clk 0:00:18]} 31. Be3 {[%clk 0:00:18]}  Bxe3+ {[%clk 0:00:16]} 32. Nxe3 {[%clk 0:00:19]}  Bd7 {[%clk 0:00:16]} 33. Kg2 {[%clk 0:00:17]}  Rf4 {[%clk 0:00:15]} 34. Rc4 {[%clk 0:00:16]}  Kf7 {[%clk 0:00:15]} 35. Kg3 {[%clk 0:00:16]}  g5 {[%clk 0:00:15]} 36. e5 {[%clk 0:00:13]}  Rxc4 {[%clk 0:00:14]} 37. Nxc4 {[%clk 0:00:13]}  Ke7 {[%clk 0:00:11]} 38. Nd6 {[%clk 0:00:12]}  Nc5 {[%clk 0:00:10]} 39. Nxb7 {[%clk 0:00:10]}  Na6 {[%clk 0:00:06]} 40. Nd6 {[%clk 0:00:09]}  Ba4 {[%clk 0:00:06]} 41. Ne4 {[%clk 0:00:09]}  Bb3 {[%clk 0:00:06]} 42. Nc3 {[%clk 0:00:06]}  Kf7 {[%clk 0:00:04]} 43. Kg4 {[%clk 0:00:06]}  Kg6 {[%clk 0:00:05]} 44. e6 {[%clk 0:00:06]}  Kf6 {[%clk 0:00:05]} 45. h3 {[%clk 0:00:05]}  Bc4 {[%clk 0:00:05]} 46. Ne4+ {[%clk 0:00:05]}  Ke7 {[%clk 0:00:02]} 47. Nc3 {[%clk 0:00:05]}  Kf6 {[%clk 0:00:02]} 48. a4 {[%clk 0:00:04]}  Nc7 {[%clk 0:00:02]} 49. Ne4+ {[%clk 0:00:03]}  Ke7 {[%clk 0:00:02]} 50. d6+ {[%clk 0:00:03]}  Kxe6 {[%clk 0:00:03]} 51. dxc7 {[%clk 0:00:03]}  Kd7 {[%clk 0:00:03]} 52. c8=Q+ {[%clk 0:00:03]}  Kxc8 {[%clk 0:00:04]} 53. Nd6+ {[%clk 0:00:04]} 1-0


[Site "https://www.chess.com"]

[Event "Titled Tuesday Blitz February 01 B 2022"]
[White "Domingo Nunez, Alejandro"]
[Black "Brodowski, Piotr"]
[WhiteFideId "22245561"]
[BlackFideId "1124480"]
[WhiteElo "2215"]
[BlackElo "2422"]
[Result "0-1"]
[Round "10"]
[TimeControl "180+1"]
[Date "2022.02.01"]
[WhiteClock "0:00:06"]
[BlackClock "0:00:08"]

1. d4 {[%clk 0:03:00]}  d5 {[%clk 0:02:58]} 2. g3 {[%clk 0:03:00]}  Kd7 {[%clk 0:02:58]} 3. Bg2 {[%clk 0:03:01]}  Nf6 {[%clk 0:02:58]} 4. c4 {[%clk 0:03:00]}  e6 {[%clk 0:02:52]} 5. Nc3 {[%clk 0:03:00]}  c6 {[%clk 0:02:52]} 6. Nf3 {[%clk 0:02:59]}  Bd6 {[%clk 0:02:51]} 7. Ne5+ {[%clk 0:02:55]}  Ke7 {[%clk 0:02:49]} 8. O-O {[%clk 0:02:55]}  Re8 {[%clk 0:02:48]} 9. Bg5 {[%clk 0:02:23]}  h6 {[%clk 0:02:44]} 10. Bxf6+ {[%clk 0:02:22]}  gxf6 {[%clk 0:02:40]} 11. Nf3 {[%clk 0:02:20]}  f5 {[%clk 0:02:39]} 12. Qd2 {[%clk 0:02:20]}  Rh8 {[%clk 0:02:35]} 13. c5 {[%clk 0:02:16]}  Bc7 {[%clk 0:02:35]} 14. b4 {[%clk 0:02:16]}  Nd7 {[%clk 0:02:34]} 15. Ne1 {[%clk 0:02:09]}  Nf6 {[%clk 0:02:33]} 16. Nd3 {[%clk 0:02:07]}  Ne4 {[%clk 0:02:26]} 17. Qc2 {[%clk 0:02:07]}  Qg8 {[%clk 0:02:17]} 18. Nxe4 {[%clk 0:01:59]}  fxe4 {[%clk 0:02:15]} 19. Nf4 {[%clk 0:01:59]}  Qg5 {[%clk 0:02:06]} 20. f3 {[%clk 0:01:47]}  e3 {[%clk 0:01:51]} 21. Nd3 {[%clk 0:01:38]}  h5 {[%clk 0:01:29]} 22. f4 {[%clk 0:01:36]}  Qg6 {[%clk 0:01:09]} 23. Qc1 {[%clk 0:01:36]}  h4 {[%clk 0:01:10]} 24. Qxe3 {[%clk 0:01:36]}  hxg3 {[%clk 0:01:10]} 25. hxg3 {[%clk 0:01:37]}  Bd7 {[%clk 0:01:11]} 26. Kf2 {[%clk 0:01:31]}  Rag8 {[%clk 0:01:10]} 27. Rh1 {[%clk 0:01:29]}  f6 {[%clk 0:01:07]} 28. Rxh8 {[%clk 0:01:25]}  Rxh8 {[%clk 0:01:08]} 29. Rh1 {[%clk 0:01:25]}  Rxh1 {[%clk 0:01:04]} 30. Bxh1 {[%clk 0:01:26]}  a5 {[%clk 0:01:03]} 31. a3 {[%clk 0:01:24]}  Qh7 {[%clk 0:01:01]} 32. Bg2 {[%clk 0:01:21]}  Qh8 {[%clk 0:01:00]} 33. Qf3 {[%clk 0:01:15]}  Be8 {[%clk 0:00:56]} 34. Qg4 {[%clk 0:01:07]}  Qh7 {[%clk 0:00:52]} 35. Bh3 {[%clk 0:00:54]}  Qe4 {[%clk 0:00:41]} 36. Kf1 {[%clk 0:00:36]}  Bf7 {[%clk 0:00:39]} 37. f5 {[%clk 0:00:34]}  Qh1+ {[%clk 0:00:27]} 38. Kf2 {[%clk 0:00:33]}  Qh2+ {[%clk 0:00:27]} 39. Bg2 {[%clk 0:00:24]}  exf5 {[%clk 0:00:25]} 40. Qxf5 {[%clk 0:00:24]}  Qxg3+ {[%clk 0:00:23]} 41. Kf1 {[%clk 0:00:23]}  Qe3 {[%clk 0:00:17]} 42. Qc8 {[%clk 0:00:20]}  Bh2 {[%clk 0:00:16]} 43. Qxb7+ {[%clk 0:00:20]}  Kf8 {[%clk 0:00:16]} 44. Qc8+ {[%clk 0:00:19]}  Be8 {[%clk 0:00:15]} 45. Ke1 {[%clk 0:00:14]}  Qxd4 {[%clk 0:00:13]} 46. Qh3 {[%clk 0:00:13]}  Bf4 {[%clk 0:00:10]} 47. Qh8+ {[%clk 0:00:13]}  Ke7 {[%clk 0:00:10]} 48. Qg7+ {[%clk 0:00:13]}  Bf7 {[%clk 0:00:10]} 49. Bf3 {[%clk 0:00:09]}  Be3 {[%clk 0:00:07]} 50. Kd1 {[%clk 0:00:03]}  Qa1+ {[%clk 0:00:06]} 51. Kc2 {[%clk 0:00:03]}  Qa2+ {[%clk 0:00:07]} 52. Kc3 {[%clk 0:00:03]}  Qxa3+ {[%clk 0:00:07]} 53. Kc2 {[%clk 0:00:04]}  Qa2+ {[%clk 0:00:07]} 54. Kc3 {[%clk 0:00:04]}  axb4+ {[%clk 0:00:08]} 55. Nxb4 {[%clk 0:00:03]}  Qc4+ {[%clk 0:00:07]} 56. Kb2 {[%clk 0:00:03]}  Qxb4+ {[%clk 0:00:08]} 57. Kc2 {[%clk 0:00:04]}  Qc4+ {[%clk 0:00:08]} 58. Kb2 {[%clk 0:00:05]}  Bd4+ {[%clk 0:00:08]} 59. Ka3 {[%clk 0:00:05]}  Qxc5+ {[%clk 0:00:08]} 60. Kb3 {[%clk 0:00:05]}  Qc4+ {[%clk 0:00:08]} 61. Ka3 {[%clk 0:00:05]}  Qc3+ {[%clk 0:00:09]} 62. Ka2 {[%clk 0:00:06]}  Qb2# {[%clk 0:00:08]} 0-1


[Site "https://www.chess.com"]

[Event "Titled Tuesday Blitz February 01 B 2022"]
[White "Golubka, Petro"]
[Black "Carlsson, Ludvig"]
[WhiteFideId "14114224"]
[BlackFideId "1727010"]
[WhiteElo "2392"]
[BlackElo "2178"]
[Result "1/2-1/2"]
[Round "10"]
[TimeControl "180+1"]
[Date "2022.02.01"]
[WhiteClock "0:01:09"]
[BlackClock "0:00:11"]

1. a3 {[%clk 0:03:00]}  d5 {[%clk 0:02:58]} 2. b3 {[%clk 0:03:00]}  e5 {[%clk 0:02:57]} 3. Bb2 {[%clk 0:03:01]}  Bd6 {[%clk 0:02:57]} 4. Nc3 {[%clk 0:02:58]}  c6 {[%clk 0:02:57]} 5. e4 {[%clk 0:02:58]}  Nf6 {[%clk 0:02:56]} 6. d4 {[%clk 0:02:57]}  O-O {[%clk 0:02:50]} 7. exd5 {[%clk 0:02:56]}  Re8 {[%clk 0:02:28]} 8. Nge2 {[%clk 0:02:52]}  exd4 {[%clk 0:02:26]} 9. Qxd4 {[%clk 0:02:53]}  Be5 {[%clk 0:02:26]} 10. Qd3 {[%clk 0:02:46]}  Nxd5 {[%clk 0:02:23]} 11. O-O-O {[%clk 0:02:45]}  Qg5+ {[%clk 0:02:23]} 12. Kb1 {[%clk 0:02:35]}  Bf5 {[%clk 0:02:19]} 13. Qd2 {[%clk 0:02:30]}  Qxd2 {[%clk 0:02:15]} 14. Rxd2 {[%clk 0:02:30]}  Nxc3+ {[%clk 0:02:13]} 15. Bxc3 {[%clk 0:02:30]}  Bxc3 {[%clk 0:02:12]} 16. Nxc3 {[%clk 0:02:30]}  Re1+ {[%clk 0:02:12]} 17. Rd1 {[%clk 0:02:31]}  Rxd1+ {[%clk 0:02:12]} 18. Nxd1 {[%clk 0:02:32]}  Nd7 {[%clk 0:02:12]} 19. Ne3 {[%clk 0:02:33]}  Be6 {[%clk 0:02:09]} 20. Be2 {[%clk 0:02:33]}  Kf8 {[%clk 0:02:08]} 21. Kb2 {[%clk 0:02:34]}  Nc5 {[%clk 0:02:06]} 22. h4 {[%clk 0:02:35]}  Ne4 {[%clk 0:02:06]} 23. Rf1 {[%clk 0:02:34]}  Rd8 {[%clk 0:02:05]} 24. Bd3 {[%clk 0:02:34]}  Nf6 {[%clk 0:02:04]} 25. g3 {[%clk 0:02:26]}  h6 {[%clk 0:02:05]} 26. f3 {[%clk 0:02:24]}  Nd5 {[%clk 0:02:03]} 27. Ng2 {[%clk 0:02:21]}  Bh3 {[%clk 0:02:01]} 28. Rf2 {[%clk 0:02:22]}  a5 {[%clk 0:01:56]} 29. Ne1 {[%clk 0:02:13]}  Re8 {[%clk 0:01:55]} 30. Re2 {[%clk 0:02:13]}  Rxe2 {[%clk 0:01:52]} 31. Bxe2 {[%clk 0:02:14]}  Bf5 {[%clk 0:01:51]} 32. c4 {[%clk 0:02:12]}  Nc7 {[%clk 0:01:47]} 33. Kc3 {[%clk 0:02:11]}  Ne6 {[%clk 0:01:45]} 34. b4 {[%clk 0:02:10]}  axb4+ {[%clk 0:01:45]} 35. axb4 {[%clk 0:02:11]}  Ke7 {[%clk 0:01:42]} 36. Ng2 {[%clk 0:02:12]}  Bb1 {[%clk 0:01:36]} 37. c5 {[%clk 0:02:08]}  Nc7 {[%clk 0:01:32]} 38. Bc4 {[%clk 0:02:07]}  Bf5 {[%clk 0:01:28]} 39. Nf4 {[%clk 0:02:06]}  g6 {[%clk 0:01:26]} 40. Ne2 {[%clk 0:02:03]}  Bd7 {[%clk 0:01:22]} 41. Nd4 {[%clk 0:02:02]}  Bc8 {[%clk 0:01:15]} 42. Kd3 {[%clk 0:02:01]}  Bh3 {[%clk 0:01:13]} 43. Ke4 {[%clk 0:02:00]}  Ne6 {[%clk 0:01:08]} 44. Nb3 {[%clk 0:01:57]}  Bf5+ {[%clk 0:01:02]} 45. Ke3 {[%clk 0:01:56]}  Nf8 {[%clk 0:00:57]} 46. Na5 {[%clk 0:01:56]}  Bc8 {[%clk 0:00:57]} 47. Kd4 {[%clk 0:01:52]}  Nd7 {[%clk 0:00:57]} 48. Bb3 {[%clk 0:01:46]}  f6 {[%clk 0:00:55]} 49. Bc2 {[%clk 0:01:45]}  Kf7 {[%clk 0:00:48]} 50. Be4 {[%clk 0:01:44]}  f5 {[%clk 0:00:45]} 51. Bd3 {[%clk 0:01:38]}  Kf6 {[%clk 0:00:45]} 52. f4 {[%clk 0:01:34]}  Nf8 {[%clk 0:00:44]} 53. Bc4 {[%clk 0:01:33]}  Nd7 {[%clk 0:00:43]} 54. Bb3 {[%clk 0:01:28]}  g5 {[%clk 0:00:40]} 55. Nc4 {[%clk 0:01:27]}  gxh4 {[%clk 0:00:30]} 56. gxh4 {[%clk 0:01:25]}  Nf8 {[%clk 0:00:18]} 57. Nd6 {[%clk 0:01:25]}  Be6 {[%clk 0:00:16]} 58. Bc2 {[%clk 0:01:24]}  Ng6 {[%clk 0:00:16]} 59. Ke3 {[%clk 0:01:20]}  Nxh4 {[%clk 0:00:15]} 60. Nxb7 {[%clk 0:01:21]}  Ng2+ {[%clk 0:00:15]} 61. Kf3 {[%clk 0:01:21]}  Bd5+ {[%clk 0:00:15]} 62. Kg3 {[%clk 0:01:22]}  Ne3 {[%clk 0:00:15]} 63. Bd3 {[%clk 0:01:19]}  h5 {[%clk 0:00:15]} 64. Nd6 {[%clk 0:01:19]}  Ng2 {[%clk 0:00:15]} 65. Bc4 {[%clk 0:01:16]}  h4+ {[%clk 0:00:15]} 66. Kh3 {[%clk 0:01:15]}  Nxf4+ {[%clk 0:00:15]} 67. Kxh4 {[%clk 0:01:16]}  Bxc4 {[%clk 0:00:13]} 68. Nxc4 {[%clk 0:01:17]}  Nd3 {[%clk 0:00:11]} 69. b5 {[%clk 0:01:16]}  Nxc5 {[%clk 0:00:10]} 70. bxc6 {[%clk 0:01:11]}  Na6 {[%clk 0:00:10]} 71. Nd6 {[%clk 0:01:10]}  Ke6 {[%clk 0:00:09]} 72. Nxf5 {[%clk 0:01:09]}  Kxf5 {[%clk 0:00:10]} 73. c7 {[%clk 0:01:09]}  Nxc7 {[%clk 0:00:11]} 1/2-1/2


[Site "https://www.chess.com"]